Cogmind - Beta 14 @@@ ROGUE MODE // 2024.09.07 @ 12:10:21 Player: Pogmind Result: Destroyed by XS-MAL(R) with Subdweller Shrapnel Launcher Performance ------------- Evolutions (0) 0 Regions Visited (2) 400 Robots Destroyed (49) 245 Value Destroyed (1200) 1200 Prototype IDs (14) 280 Alien Tech Used (0) 0 Bonus (0) 0 TOTAL SCORE: 2125 Bonus ------- None Cogmind --------- Core Integrity 0/250 Matter 275/300 Energy 100/100 System Corruption 0% Temperature Cool (26) Movement Treading (320) Ox2 Location -10/Subcaves Parts ------- > --- POWER (1) -------- (None) > --- PROPULSION (2) --- Light Treads Light Treads > --- UTILITY (2) ------ Disposable Heat Sink Huge Storage Unit > --- WEAPON (2) ------- Subdweller Beam Cannon Subdweller Beam Cannon > --- INVENTORY (25) --- Subdweller Power Source Light Treads Spiked Treads Subdweller Monowheel Subdweller Monowheel Disposable Heat Sink Large Storage Unit Seismic Detector Light Armor Plating Light Armor Plating Hardened Light Armor Plating Hardened Light Armor Plating Hardened Light Armor Plating Hardened Light Armor Plating Scrap Shield Hacking Suite Subdweller Laser Subdweller Machine Gun Subdweller Machine Gun Subdweller Machine Gun Subdweller Machine Gun Battle Cannon Subdweller Shrapnel Launcher Makeshift Sword Peak State ------------ > --- POWER ------------ Ion Engine > --- PROPULSION ------- Light Treads Light Treads > --- UTILITY ---------- Huge Storage Unit Seismic Detector > --- WEAPON ----------- Subdweller Beam Cannon Makeshift Sword > --- INVENTORY -------- Subdweller Power Source Light Treads Spiked Treads Subdweller Monowheel Subdweller Monowheel Disposable Heat Sink Disposable Heat Sink Large Storage Unit Light Armor Plating Light Armor Plating Hardened Light Armor Plating Hardened Light Armor Plating Hardened Light Armor Plating Hardened Light Armor Plating Scrap Shield Hacking Suite Subdweller Laser Subdweller Laser Subdweller Beam Cannon Subdweller Machine Gun Subdweller Machine Gun Subdweller Machine Gun Battle Cannon Subdweller Shrapnel Launcher [Rating: 15] Favorites ----------- Power Ion Engine Engine Ion Engine Propulsion Light Treads Treads Light Treads Utility Seismic Detector Device Seismic Detector Storage Huge Storage Unit Processor Machine Analyzer Protection Light Armor Plating Weapon Subdweller Beam Cannon Energy Gun Small Laser Energy Cannon Subdweller Beam Cannon Ballistic Gun Subdweller Machine Gun Launcher Subdweller Shrapnel Launcher Slashing Weapon Mining Claw Build | -11 -10 -10 ------- Run | Yrd Mat Sub Slots Evolved . | . . . Power . | . . . Propulsion . | . . . Utility . | . . . Weapon . | . . . Parts Attached 97 | 7 38 52 Power 3 | 1 1 1 Engine 3 | 1 1 1 Core . | . . . Reactor . | . . . Propulsion 5 | 2 1 2 Treads 5 | 2 1 2 Leg . | . . . Wheel . | . . . Hover . | . . . Flight . | . . . Utility 58 | 2 28 28 Device 33 | 1 13 19 Storage 5 | 1 2 2 Processor 1 | . 1 . Hackware . | . . . Protection 19 | . 12 7 Artifact . | . . . Weapon 31 | 2 8 21 Energy Gun 8 | 2 5 1 Energy Cannon 9 | . . 9 Ballistic Gun 5 | . 2 3 Ballistic Cannon . | . . . Launcher 1 | . . 1 Special Weapon . | . . . Impact Weapon . | . . . Slashing Weapon 8 | . 1 7 Piercing Weapon . | . . . Special Melee Weapon . | . . . Unidentified Prototypes . | . . . Parts Lost 8 | . 2 6 Power 2 | . . 2 Propulsion 2 | . . 2 Utility 2 | . 1 1 Weapon 2 | . 1 1 Highest Loss Streak 1 | . 1 1 To Critical Strikes . | . . . Average Slot Usage (%) 99 | . 99 99 Engine 14 | . 14 14 Treads 27 | . 27 27 Device 11 | . 7 13 Storage 14 | . 14 14 Protection 1 | . 6 . Energy Gun 7 | . 25 1 Energy Cannon 10 | . . 14 Ballistic Gun 5 | . . 7 Slashing Weapon 4 | . 1 5 Peak Build Rating 15 | 7 10 15 Average Rating 11 | 5 7 12 On Entrance 5 | . 7 9 Naked Turns . | . . . Heaviest Build 113 | 11 92 113 Greatest Support 40 | 40 40 40 Greatest Overweight (x) 2 | . 2 2 Average Overweight (x) 1 | . . 2 Largest Inventory Capacity 25 | 8 25 25 Average Capacity 22 | 7 14 25 Most Carried 25 | 4 19 25 Average Carried 20 | 3 11 24 Final Capacity 25 | 8 25 25 Final Carried 25 | 4 19 25 Class Distribution -------------------- 54% | Scavenger-Mutant 45% | Mutant Dominant Class ---------------- Mutant | -10/Materials Scavenger-Mutant | -10/Subcaves Resources | -11 -10 -10 ----------- Run | Yrd Mat Sub Matter Collected 1203 | 261 336 606 Remotely . | . . . Salvage Created 1682 | 169 801 712 Parts 114 | 16 52 46 Haulers Intercepted 2 | . 2 . Recyclers Shooed . | . . . Parts Field Recycled . | . . . Retrieved Matter . | . . . Parts Self-Destructed 27 | . . 27 Prevented . | . . . Kills | -11 -10 -10 ------- Run | Yrd Mat Sub Combat Hostiles Destroyed 34 | . 17 17 Guns 27 | . 17 10 Cannons 3 | . . 3 AOE 3 | . . 3 Classes Destroyed 11 | 2 7 2 Worker 1 | . 1 . Tunneler 5 | 5 . . Hauler 2 | . 2 . Recycler 1 | 1 . . Mechanic 1 | . 1 . Operator 2 | . 2 . Watcher 3 | . 3 . Swarmer 8 | . 5 3 Grunt 15 | . 12 3 Sentry 1 | . . 1 Subdweller 10 | . . 10 Best Kill Streak 3 | 3 3 3 Combat Bots Only 3 | . 3 3 Max Kills in Single Turn 3 | 1 2 3 Gunslinging . | . . . Exploded 3 | . . 3 Melee . | . . . Uniques/NPCs Destroyed . | . . . Combat | -11 -10 -10 -------- Run | Yrd Mat Sub Hostile Shots Fired 129 | . 65 64 Missed 36 | . 15 21 Damage Taken 1500 | . 505 995 Core 250 | . 68 182 Absorbed by Shields . | . . . Regen/Repaired (Parts) 118 | . 118 . Core Remaining (%) 100 | 100 . . Volleys Fired 119 | 11 70 38 Largest 2 | 2 2 2 Hottest 160 | 80 90 160 Shots Fired 233 | 22 140 71 Gun 217 | 22 140 55 Cannon 15 | . . 15 Launcher 1 | . . 1 Special . | . . . Kinetic 46 | . 2 44 Thermal 187 | 22 138 27 Explosive . | . . . Electromagnetic . | . . . Robot Hit Streak 28 | 5 28 25 Robot Miss Streak 4 | 1 4 3 Penetration Max . | . . . Secondary Targets 2 | . 2 . Max Gunslinging Chain 1 | . 1 . Shots Hit Robots 177 | 13 98 66 Core Hits 82 | 7 49 26 Critical Kills 3 | . . 3 Critical Parts Destroyed . | . . . Critical Strikes 5 | . 1 4 Burn 2 | . 1 1 Meltdown 1 | . . 1 Destroy 2 | . . 2 Melee Attacks 109 | . 7 102 Impact . | . . . Slashing 109 | . 7 102 Piercing . | . . . Sneak Attacks 1 | . . 1 Combat Hostiles . | . . . Follow-up Attacks . | . . . Damage Inflicted 3221 | 140 1234 1847 Guns 2224 | 136 1218 870 Cannons 337 | . . 337 Explosions 152 | . . 152 Melee 488 | . . 488 Ramming 20 | 4 16 . Kinetic 901 | . 7 894 Thermal 1812 | 136 1211 465 Explosive . | . . . Electromagnetic . | . . . Impact . | . . . Slashing 488 | . . 488 Piercing . | . . . Highest Corruption . | . . . Average Corruption . | . . . Corruption Purged . | . . . Corruption Blocked . | . . . Overload Shots . | . . . Overflow Damage 39 | . . 39 Projectiles . | . . . Explosions 39 | . . 39 Melee . | . . . Knockbacks . | . . . Impact . | . . . Kinetic . | . . . Secondary . | . . . Self-Inflicted Damage . | . . . Shots . | . . . Rammed 6 | 2 4 . Targets Rammed 6 | 2 4 . Kicked . | . . . Crushed . | . . . Highest Temperature 307 | 54 198 307 Average Temperature 72 | 21 75 107 Received Heat Transfer 783 | . 219 564 Effects 2 | . . 2 Interference 2 | . . 2 Siege Activations . | . . . Robots Corrupted . | . . . Combat Hostiles . | . . . Parts Fried . | . . . Impact Corruptions . | . . . Robots Melted 1 | . . 1 Combat Hostiles 1 | . . 1 Parts Melted 8 | . 6 2 Heat Transferred 4254 | 325 3053 876 Parts Sabotaged . | . . . Parts Stolen . | . . . Parts Stripped . | . . . Power Chain Reactions . | . . . Alert | -11 -10 -10 ------- Run | Yrd Mat Sub Peak Influence 406 | 30 406 . Initial 19 | . 19 . Average 140 | 14 150 . Maximum Alert Level 2 | . 2 . Low Security (%) 71 | 100 69 . Level 1 25 | . 27 . Level 2 2 | . 2 . Level 3 . | . . . Level 4 . | . . . Level 5 . | . . . High Security . | . . . Max Security . | . . . Squads Dispatched 6 | . 6 . Investigation 4 | . 4 . Extermination . | . . . Reinforcement 2 | . 2 . Assault . | . . . Garrison . | . . . Intercept . | . . . Searches Triggered . | . . . Construction Impeded . | . . . Haulers Reinforced . | . . . Active Scanning Responses . | . . . Cargo Convoy Interrupts . | . . . Stealth | -11 -10 -10 --------- Run | Yrd Mat Sub Distress Signals . | . . . Communications Jammed . | . . . Distress Signals . | . . . Times Spotted 47 | . 30 17 Peak Tracking Total 4 | . 4 3 Tactical Retreats 3 | . 3 . Traps | -11 -10 -10 ------- Run | Yrd Mat Sub Traps Triggered 4 | . 2 2 Indirectly . | . . . Trap Hack Attempts . | . . . Triggered . | . . . Disarmed . | . . . Reprogrammed . | . . . Reused . | . . . Traps Extracted . | . . . Installed . | . . . Triggered . | . . . Machines | -11 -10 -10 ---------- Run | Yrd Mat Sub Machines Disabled . | . . . Max in Single Turn . | . . . Machines Repaired . | . . . Machines Dismantled . | . . . Machines Sabotaged . | . . . Overloaded Fab Kills . | . . . Hacking | -11 -10 -10 --------- Run | Yrd Mat Sub Machines Accessed 11 | . 8 3 Terminals 5 | . 5 . Fabricators . | . . . Repair Stations 1 | . 1 . Recycling Units 2 | . 2 . Scanalyzers . | . . . Garrison Access . | . . . Total Hacks 31 | . 25 6 Successful 23 | . 17 6 Failed 8 | . 8 . Catastrophic 1 | . 1 . Database Lockouts . | . . . Manual 19 | . 19 . Terminals 19 | . 19 . Fabricators . | . . . Repair Stations 4 | . 4 . Recycling Units 2 | . 2 . Scanalyzers . | . . . Garrison Access . | . . . Terminal Hacks 11 | . 5 6 Record 4 | . . 4 Part Schematic 1 | . 1 . Robot Analysis 2 | . 2 . Prototype ID Bank 1 | . 1 . Open Door 1 | . . 1 Hauler Manifests 1 | . 1 . Derelict Proto ID Bank 1 | . . 1 Fabricator Hacks . | . . . Repair Station Hacks 3 | . 3 . Scan Component 2 | . 2 . Repair 1 | . 1 . Recycling Unit Hacks . | . . . Scanalyzer . | . . . Garrison Access Hacks . | . . . Unauthorized Hacks 9 | . 9 . Terminals 7 | . 7 . Botnet 2 | . 2 . Skim 5 | . 5 . Fabricators . | . . . Repair Stations . | . . . Recycling Units 2 | . 2 . Tunnel 2 | . 2 . Scanalyzers . | . . . Garrison Access . | . . . Data Cores Recovered . | . . . Used . | . . . Hacking Detections 6 | . 6 . Full Trace Events 1 | . 1 . Feedback Events . | . . . Feedback Blocked . | . . . Robot Schematics Acquired . | . . . Robots Built . | . . . Authchips . | . . . Time . | . . . Total Robot Build Rating . | . . . Part Schematics Acquired 1 | . 1 . Parts Built . | . . . Authchips . | . . . Time . | . . . Total Part Build Rating . | . . . Parts Repaired 1 | . 1 . Time 26 | . 26 . Parts Recycled . | . . . Recycled Matter . | . . . Retrieved Matter . | . . . Retrieved Components . | . . . Parts Scanalyzed . | . . . Part Schematics Acquired . | . . . Parts Damaged . | . . . Bothacking | -11 -10 -10 ------------ Run | Yrd Mat Sub Used RIF Installer . | . . . Robots Hacked . | . . . Non-combat . | . . . Combat . | . . . Robot Hacks Applied . | . . . Relay Couplers Released . | . . . Fabnet Peak Effective % . | . . . Robots Rewired . | . . . Allies Hacked . | . . . Hacks Repelled . | . . . Allies | -11 -10 -10 -------- Run | Yrd Mat Sub Total Allies . | . . . Largest Group . | . . . Highest-Rated Group . | . . . Highest-Rated Ally . | . . . Total Orders . | . . . Ally Attacks . | . . . Total Damage . | . . . Kills . | . . . Allies Corrupted . | . . . Allies Melted . | . . . Intel | -11 -10 -10 ------- Run | Yrd Mat Sub Robot Analysis Total 2 | . 2 . Derelict Logs Recovered 2 | . . 2 Drone Launches . | . . . Drone Recoveries . | . . . Exploration | -11 -10 -10 ------------- Run | Yrd Mat Sub Turns Passed 10267 | 218 2652 7397 Spaces Moved 2761 | 108 838 1815 Core 6 | 6 . . Treads 2755 | 102 838 1815 Legs . | . . . Wheels . | . . . Hover . | . . . Flight . | . . . Fastest Speed 50 | 50 160 320 Average Speed 266 | 153 163 320 Slowest Speed 320 | 160 320 320 Overloaded Moves . | . . . Propulsion Burnouts . | . . . Robots Hopped . | . . . Cave-ins Triggered . | . . . Exploration Rate (%) 67 | 8 99 94 Regions Visited 2 Branch Regions 1 Pre-discovered Areas 3 | . 2 1 Known Exits Taken 1 | . 1 . Unknown Exits Taken 1 | 1 . . Scrap Searched 11 | . . 11 Spaces Dug 13 | . 4 9 Terrain Destroyed 23 | . 4 19 Melee 13 | . 4 9 Projectile 1 | . . 1 AOE 9 | . . 9 Terrain Rammed . | . . . Walls Destroyed . | . . . Machines Disabled . | . . . Actions | -11 -10 -10 --------- Run | Yrd Mat Sub Total 5247 | 133 1950 3164 Wait 2084 | 2 966 1116 Move 2759 | 107 837 1815 Hop . | . . . Pick Up 50 | 4 21 25 Fast Attach 9 | 7 1 1 Attach 9 | . 4 5 Detach 2 | . 2 . Swap 79 | . 33 46 Drop 21 | . 5 16 Fire 119 | 11 70 38 Melee 109 | . 7 102 Ram . | . . . Kick . | . . . Crush 6 | 2 4 . Escape Stasis . | . . . Rewire . | . . . Trap . | . . . Miscellaneous . | . . . Route ------- -11/Scrapyard -10/Materials (discovered 5 exits: [*Mat x3] / [*Min] / *Sub) -10/Subcaves (discovered 3 exits: *Mat x2 / Rec) History --------- Turn | Location | Event 5 | -11/Scrapyard | Discovered new exit (range 15) 219 | -11/Scrapyard | Entered Materials 300 | -10/Materials | Build established: Mutant 887 | -10/Materials | Discovered new exit (range 16) 1034 | -10/Materials | Discovered new exit (range 10) 1844 | -10/Materials | Discovered new exit (range 16) 2207 | -10/Materials | Learned 4 Recycling zone layouts 2320 | -10/Materials | Learned location of 2 exits from Mines 2334 | -10/Materials | Discovered new exit (range 7) 2363 | -10/Materials | Learned 2 Mines zone layouts 2415 | -10/Materials | Learned 4 Recycling zone layouts 2445 | -10/Materials | Learned Storage stockpile data 2474 | -10/Materials | Identified exit to Subcaves 2512 | -10/Materials | Learned Storage interactive machine intel 2665 | -10/Materials | Repaired Lgt. Treads 2871 | -10/Materials | Entered Subcaves 2872 | -10/Subcaves | Identified exit to Materials 3352 | -10/Subcaves | Shifting Twisted Machinery released Scrap Shield 3355 | -10/Subcaves | Shifting Twisted Machinery released Sub. Beam Cannon 4020 | -10/Subcaves | A swath of the cavern ceiling suddenly collapsed 4117 | -10/Subcaves | Shifting Twisted Machinery released Sub. Beam Cannon 4295 | -10/Subcaves | Shifting Twisted Machinery released Sub. Machine Gun 4773 | -10/Subcaves | Core integrity fell below 50% 4914 | -10/Subcaves | Build established: Scavenger-Mutant 5068 | -10/Subcaves | Identified exit to Recycling 5162 | -10/Subcaves | Visited 4L-MR0's lab 6457 | -10/Subcaves | Visited Clippyterm 6467 | -10/Subcaves | Learned location of Section 7 (-2) 6467 | -10/Subcaves | Learned Factory fabricator intel 7976 | -10/Subcaves | Shifting Twisted Machinery released Sub. Shrapnel Launcher 8177 | -10/Subcaves | Shifting Twisted Machinery released Sub. Power Source 8379 | -10/Subcaves | Core integrity fell below 20% 9635 | -10/Subcaves | A swath of the cavern ceiling suddenly collapsed 10268 | -10/Subcaves | Destroyed by XS-MAL(R) with Subdweller Shrapnel Launcher Last Messages --------------- 06980_ Subatomizers dissect the Disposable Heat Sink. Sub. Shrapnel Launcher falls loose from the Twisted Machinery. 08061_ S-10 Pest destroyed. 08061_ Destroyed Flight Unit. 08061_ S-10 Pest destroyed. 08073_ Lgt. Assault Rifle fries itself beyond repair. 08085_ Acquired 7 matter. 08088_ Acquired 9 matter. 08091_ Acquired 4 matter. 08127_ Acquired 31 matter. 08156_ 87-3NS(R) destroyed. Sub. Power Source falls loose from the Twisted Machinery. 08182_ Acquired 39 matter. 08378_ Triggered Shrapnel Trap. 08378_ An expanding cloud of shrapnel blasts out in all directions. A swath of the cavern ceiling suddenly collapses. 10056_ Connecting with UFD SUBCON Station... >>Open Door Sealed Heavy Doors opened. 10268_ Ion Engine destroyed. Map ----- +----------------------------------------------------+ | ?# ## """< #???????????????????????##### # ## | | ?##### ## ##?????????????????????## # | | ?####### " #??????????#######??### | | ?#""## # # #??????????#"""""#?## ## | | ?#"" ##??????????#"X "### # | | ?#"" # # #???????????#"" "#" # # | | ?#"" #### ##??????????#"" "#" # | | ## ### #??????????#"" ## | | # ### ##??????????#"" "#"X### | | # #### #???????????########## | | # ##??## ##????????????????????##### | | # #????# #?????????????######??????# ## # | | #????# ##???????????## #####??# ## ## | | #???## #??????????## ## ##### ### #? | | # ##?## ##??????????# ## #?##### ##? | | # ### #???????????# ?# #?????# ##? | | # ## #???????????# ### #?????## #? | | ####### ##???????????# ## #?????# ### | | ?????# ###???????????## #????## # | | ?????#####????????????## ## ###### | | ??????????????????????# ## ## | | ??????????????????????# ### | | ###???????????????????## ##?# ### | | ""#????????????????????# #??####?# ## | | "##????????????????????# ####????# ## | | ##?????????????????????##@ ;;#????## | | #???????????????????????## #??# | | #????????????????????????#; ;##### ## | | ??????????????????????????#; ;## #### ## | | ???????????????????????????; #### #### | | #####??????????????????????? ### | | " ""#??????????????????????? R | | """"#??????????????????????? ## | | "" #####?????????????????? ### | | ## #????????????????# #?# ## | | "" #???????????????? ## ## ##?# | | "" ##????????????????? ## #####? | | ##??????????????????? ## ####"## | | ##????????????????????# ## ##### "# | | ####??????????????????? ## ##### #### # | | ##?????????????????????? ##??##"### "" # | | #???????????????????????? #??# "# " "# | | #?????????????????????????? #??##"""##"#### | | #???????????????????????????# #?## """# #### | | ##???????????????????????????# #### ##"""## | | #??????????????????????????## " # # "#"##" | | ] ##?????????????????????##### #####" | | " #??????????????????#### # ## ##?#"" | | "" #??????????######### ## ### % ####?##" | | #?????????## ## ##?# ##???##" | +----------------------------------------------------+ Best States ------------- Heat Dissipation 35 Coolant Potential 50 Energy Generation 10 Energy Capacity 250 Matter Stores 300 Matter Capacity 300 Sight Range 16 Terrain Scan Density 10 Armor Coverage 150 Evasion (%) 40 Recoil Reduction 2 Item Schematics ----------------- Signal Interpreter | -10/Materials | Hacked Robot Schematics ------------------ None Fabricated ------------ Nothing Alien Tech Used ----------------- None Achievements -------------- None Challenges ------------ None Game ------ Seed MomentumLaserTelecube Manual? 0 Play Time 00:36:27 Cumulative 776.6 hours Start 2024.09.07 @ 11:37:42 End 2024.09.07 @ 12:10:21 Sessions 1 Manual Loads 0 Difficulty Rogue Special Mode None Game No. 97 Rogue 82 Adventurer 5 Explorer 10 Win Type - Total 31 Types 6/7/9/0/3/1/4/0/1 Lore% 76 Gallery% 92 Achievement% 86 Wizard Run 0 Options --------- Layout 0 ASCII 0 Keyboard 1 Movement Arrows Keybinds 0 Fullscreen 2 Font 18/SmallcapsGlow Map View 76x50 Zoom Use 0% Tactical HUD 1 Map Filters NONE Filters NONE Steam 1 RUN: b0df9c91-7694-40ea-8b71-284bc8416439